Cogmind - Beta 11 X9 @@@ ROGUE MODE // 2022.02.05 @ 11:57:41 // Winter2021/Sauler Player: sentrybuster Result: Self-destructed Performance ------------- Evolutions (2) 1000 Regions Visited (4) 800 Robots Destroyed (59) 295 Value Destroyed (1834) 1834 Prototype IDs (3) 60 Alien Tech Used (0) 0 Bonus (16) 16 TOTAL SCORE: 4005 Bonus ------- High Alert Combat Kills 16 Cogmind --------- Core Integrity 447/550 Matter 300/300 Energy 280/280 System Corruption 0% Temperature Cool (0) Movement Treading (160) Location -8/Storage Parts ------- > --- POWER (1) -------- Heavy Ion Engine > --- PROPULSION (3) --- Light Treads Light Treads > --- UTILITY (4) ------ Improved Heat Sink Small Storage Unit Reactive Plating Hacking Suite > --- WEAPON (3) ------- Heavy EM Shotgun Heavy Ion Cannon Scythe > --- INVENTORY (8) ---- Heavy Ion Engine Improved Terrain Scanner Advanced Beam Cannon Heavy Ion Cannon Heavy Ion Cannon Improved Assault Rifle Proton Missile Launcher Proton Missile Launcher Peak State ------------ > --- POWER ------------ Heavy Ion Engine > --- PROPULSION ------- Light Treads Light Treads VSS Leg > --- UTILITY ---------- Improved Heat Sink Small Storage Unit Seismic Analyzer Reactive Plating > --- WEAPON ----------- Heavy Ion Cannon Heavy Ion Cannon Proton Missile Launcher > --- INVENTORY -------- Ion Engine Heavy Ion Engine Improved Terrain Scanner Hacking Suite Advanced Beam Cannon Heavy Ion Cannon Heavy Ion Cannon Proton Missile Launcher [Rating: 30] Favorites ----------- Power Ion Engine Engine Ion Engine Propulsion Light Treads Treads Light Treads Leg Aluminum Leg Utility Small Storage Unit Device Improved Terrain Scanner Storage Small Storage Unit Processor Seismic Analyzer Hackware Hacking Suite Protection Reactive Plating Weapon Medium Laser Energy Gun Medium Laser Energy Cannon Heavy Ion Cannon Ballistic Gun Assault Rifle Launcher Proton Missile Launcher Slashing Weapon Scythe Build | -11 -10 -9 -8 -8 ------- Run | Scr Mat Mat Mat Sto Slots Evolved 4 | . . 2 2 . Power . | . . . . . Propulsion 1 | . . . 1 . Utility 2 | . . 2 . . Weapon 1 | . . . 1 . Parts Attached 46 | 7 2 17 16 4 Power 5 | 1 . 3 1 . Engine 5 | 1 . 3 1 . Core . | . . . . . Reactor . | . . . . . Propulsion 13 | 2 1 4 6 . Treads 9 | 2 1 2 4 . Leg 4 | . . 2 2 . Wheel . | . . . . . Hover . | . . . . . Flight . | . . . . . Utility 13 | 2 . 6 4 1 Device 7 | 1 . 4 2 . Storage 2 | 1 . 1 . . Processor 1 | . . 1 . . Hackware 1 | . . . . 1 Protection 2 | . . . 2 . Artifact . | . . . . . Weapon 15 | 2 1 4 5 3 Energy Gun 3 | 1 1 . . 1 Energy Cannon 8 | . . 4 3 1 Ballistic Gun 1 | 1 . . . . Ballistic Cannon . | . . . . . Launcher 1 | . . . 1 . Special Weapon . | . . . . . Impact Weapon . | . . . . . Slashing Weapon 2 | . . . 1 1 Piercing Weapon . | . . . . . Special Melee Weapon . | . . . . . Unidentified Prototypes 3 | . . 2 . 1 Parts Lost 8 | . . 5 2 1 Power 1 | . . 1 . . Propulsion 4 | . . 3 . 1 Utility 2 | . . . 2 . Weapon 1 | . . 1 . . Highest Loss Streak 3 | . . 3 1 1 Average Slot Usage (%) 96 | . 100 99 94 91 Engine 10 | . 14 10 9 9 Treads 19 | . 28 11 17 20 Leg 5 | . . 10 9 . Device 10 | . 14 11 9 9 Storage 14 | . 14 22 10 9 Processor 5 | . . 11 9 1 Protection 2 | . . . 5 9 Energy Gun 9 | . 26 7 . 2 Energy Cannon 10 | . . 14 16 12 Launcher 2 | . . . 6 4 Naked Turns . | . . . . . Heaviest Build 45 | 15 15 20 45 45 Greatest Support 60 | 40 40 40 60 60 Greatest Overweight (x) 1 | . . . 1 1 Average Overweight (x) . | . . . . . Largest Inventory Capacity 8 | 8 8 8 8 8 Average Capacity 7 | 7 8 8 8 8 Most Carried 8 | 8 8 8 8 8 Average Carried 7 | 5 7 6 7 7 Final Capacity 8 | 8 8 8 8 8 Final Carried 8 | 7 8 8 8 8 Class Distribution -------------------- 68% | Mutant 29% | Scavenger-Mutant Dominant Class ---------------- Mutant | -10/Materials Mutant | -9/Materials Scavenger-Mutant | -8/Materials Scavenger-Mutant | -8/Storage Resources | -11 -10 -9 -8 -8 ----------- Run | Scr Mat Mat Mat Sto Matter Collected 791 | 282 52 175 197 85 Remotely . | . . . . . Salvage Created 2268 | 176 333 742 650 367 Parts 129 | 21 24 38 34 12 Haulers Intercepted 2 | . . 1 . 1 Recyclers Shooed 1 | . . . . 1 Parts Field Recycled . | . . . . . Retrieved Matter . | . . . . . Parts Self-Destructed . | . . . . . Prevented . | . . . . . Kills | -11 -10 -9 -8 -8 ------- Run | Scr Mat Mat Mat Sto Combat Hostiles Destroyed 42 | . 9 16 11 6 Melee 1 | . . . 1 . Guns 12 | . 7 5 . . Cannons 22 | . . 10 8 4 AOE 4 | . . . 2 2 Classes Destroyed 11 | 3 3 3 2 . Worker 5 | 2 1 1 1 . Tunneler 6 | 6 . . . . Hauler 2 | . . 1 . 1 Recycler 2 | 1 . . 1 . Operator 1 | . . . 1 . Watcher 1 | . 1 . . . Swarmer 3 | . 3 . . . Grunt 29 | . 6 13 6 4 Duelist 2 | . . 1 1 . Sentry 5 | . . 2 2 1 Hunter 3 | . . . 2 1 Best Kill Streak 5 | 4 4 5 5 4 Combat Bots Only 5 | . 3 4 5 3 Max Kills in Single Turn 2 | 1 1 1 2 2 Gunslinging . | . . . . . Exploded 2 | . . . 1 2 Melee 1 | . . . 1 . Uniques/NPCs Destroyed . | . . . . . Combat | -11 -10 -9 -8 -8 -------- Run | Scr Mat Mat Mat Sto Damage Taken 1966 | . 377 647 608 334 Core 337 | . 123 111 85 18 Absorbed by Shields . | . . . . . Core Remaining (%) 74 | 100 50 72 . . Volleys Fired 148 | 18 33 52 29 16 Largest 3 | 2 2 2 3 3 Hottest 169 | 70 100 136 169 169 Shots Fired 294 | 36 66 98 60 34 Gun 151 | 36 66 49 . . Cannon 135 | . . 49 54 32 Launcher 8 | . . . 6 2 Special . | . . . . . Kinetic 18 | 18 . . . . Thermal 268 | 18 66 98 54 32 Explosive . | . . . . . Electromagnetic 8 | . . . 6 2 Robot Hit Streak 11 | 6 11 10 10 6 Robot Miss Streak 6 | 3 6 3 2 3 Penetration Max . | . . . . . Secondary Targets 2 | . 1 1 . . Max Gunslinging Chain 1 | . 1 1 . . Shots Hit Robots 181 | 20 38 61 39 23 Core Hits 85 | 10 16 26 21 12 Critical Kills 1 | . . 1 . . Critical Parts Destroyed . | . . . . . Critical Strikes 7 | 1 3 3 . . Burn 6 | 1 3 2 . . Meltdown 1 | . . 1 . . Melee Attacks 6 | . . . 2 4 Impact . | . . . . . Slashing 6 | . . . 2 4 Piercing . | . . . . . Sneak Attacks 1 | . . . . 1 Combat Hostiles . | . . . . . Follow-up Attacks . | . . . . . Damage Inflicted 3807 | 245 486 922 1324 830 Guns 1142 | 245 486 411 . . Cannons 2012 | . . 511 939 562 Explosions 503 | . . . 322 181 Melee 150 | . . . 63 87 Ramming . | . . . . . Kinetic 95 | 95 . . . . Thermal 3154 | 150 486 922 1034 562 Explosive . | . . . . . Electromagnetic 408 | . . . 227 181 Impact . | . . . . . Slashing 150 | . . . 63 87 Piercing . | . . . . . Highest Corruption . | . . . . . Average Corruption . | . . . . . Corruption Purged . | . . . . . Overload Shots . | . . . . . Overflow Damage 35 | . . . . 35 Projectiles 35 | . . . . 35 Explosions . | . . . . . Melee . | . . . . . Knockbacks . | . . . . . Impact . | . . . . . Kinetic . | . . . . . Secondary . | . . . . . Self-Inflicted Damage . | . . . . . Shots . | . . . . . Rammed . | . . . . . Targets Rammed . | . . . . . Kicked . | . . . . . Crushed . | . . . . . Highest Temperature 399 | 36 399 327 325 305 Average Temperature 108 | 15 169 94 77 125 Received Heat Transfer 726 | . 144 303 135 144 Effects 9 | . 4 3 1 1 Shutdowns 1 | . 1 . . . Energy Bleed 4 | . 3 . . 1 Interference 3 | . . 3 . . Matter Decay 1 | . . . 1 . Siege Activations . | . . . . . Robots Corrupted . | . . . . . Combat Hostiles . | . . . . . Parts Fried 2 | . . . 1 1 Impact Corruptions . | . . . . . Robots Melted 3 | . 2 1 . . Combat Hostiles 3 | . 2 1 . . Parts Melted 15 | . 2 8 4 1 Heat Transferred 6797 | 518 1665 2442 1395 777 Parts Sabotaged . | . . . . . Parts Stolen . | . . . . . Parts Stripped . | . . . . . Power Chain Reactions 1 | . . . 1 . Missiles Intercepted . | . . . . . Alert | -11 -10 -9 -8 -8 ------- Run | Scr Mat Mat Mat Sto Peak Influence 427 | 45 289 427 334 214 Initial 118 | . 29 48 118 78 Average 152 | 23 124 224 195 121 Maximum Alert Level 2 | . 1 2 1 1 Low Security (%) 70 | 100 84 35 61 97 Level 1 29 | . 15 63 38 2 Level 2 . | . . 1 . . Level 3 . | . . . . . Level 4 . | . . . . . Level 5 . | . . . . . High Security . | . . . . . Max Security . | . . . . . Squads Dispatched 5 | . 2 2 1 . Investigation . | . . . . . Extermination . | . . . . . Reinforcement 5 | . 2 2 1 . Assault . | . . . . . Garrison . | . . . . . Intercept . | . . . . . Construction Impeded . | . . . . . Haulers Reinforced . | . . . . . Active Scanning Responses . | . . . . . Cargo Convoy Interrupts . | . . . . . Stealth | -11 -10 -9 -8 -8 --------- Run | Scr Mat Mat Mat Sto Distress Signals 4 | . 1 . 3 . Communications Jammed . | . . . . . Distress Signals . | . . . . . Times Spotted 58 | . 14 19 18 7 Peak Tracking Total 5 | . 4 4 5 4 Tactical Retreats 3 | . . . 1 2 Traps | -11 -10 -9 -8 -8 ------- Run | Scr Mat Mat Mat Sto Traps Triggered . | . . . . . Indirectly . | . . . . . Trap Hack Attempts . | . . . . . Triggered . | . . . . . Disarmed . | . . . . . Reprogrammed . | . . . . . Reused . | . . . . . Traps Extracted . | . . . . . Installed . | . . . . . Triggered . | . . . . . Machines | -11 -10 -9 -8 -8 ---------- Run | Scr Mat Mat Mat Sto Machines Disabled 9 | . 2 2 4 1 Max in Single Turn 1 | . 1 1 1 1 Machines Sabotaged . | . . . . . Garrisons Compromised . | . . . . . Overloaded Fab Kills . | . . . . . Hacking | -11 -10 -9 -8 -8 --------- Run | Scr Mat Mat Mat Sto Machines Accessed 13 | . 5 3 2 3 Terminals 13 | . 5 3 2 3 Fabricators . | . . . . . Repair Stations . | . . . . . Recycling Units . | . . . . . Scanalyzers . | . . . . . Garrison Access . | . . . . . Total Hacks 42 | . 14 8 9 11 Successful 23 | . 7 5 5 6 Failed 19 | . 7 3 4 5 Catastrophic . | . . . . . Database Lockouts . | . . . . . Manual 22 | . 5 4 7 6 Terminals 42 | . 14 8 9 11 Fabricators . | . . . . . Repair Stations . | . . . . . Recycling Units . | . . . . . Scanalyzers . | . . . . . Garrison Access . | . . . . . Terminal Hacks 16 | . 4 4 3 5 Terminal Index 3 | . 1 1 . 1 Alert Level 5 | . 2 1 2 . Unreport Threat 2 | . . . 1 1 Locate Traps 2 | . 1 1 . . Hauler Manifests 2 | . . 1 . 1 Zone Layout 2 | . . . . 2 Fabricator Hacks . | . . . . . Repair Station Hacks . | . . . . . Recycling Unit Hacks . | . . . . . Scanalyzer . | . . . . . Garrison Access Hacks . | . . . . . Unauthorized Hacks 7 | . 3 1 2 1 Terminals 7 | . 3 1 2 1 Track 6 | . 3 . 2 1 Botnet 1 | . . 1 . . Fabricators . | . . . . . Repair Stations . | . . . . . Recycling Units . | . . . . . Scanalyzers . | . . . . . Garrison Access . | . . . . . Data Cores Recovered . | . . . . . Used . | . . . . . Hacking Detections 12 | . 5 3 2 2 Full Trace Events . | . . . . . Feedback Events . | . . . . . Feedback Blocked . | . . . . . Robot Schematics Acquired . | . . . . . Robots Built . | . . . . . Authchips . | . . . . . Time . | . . . . . Total Robot Build Rating . | . . . . . Part Schematics Acquired . | . . . . . Parts Built . | . . . . . Authchips . | . . . . . Time . | . . . . . Total Part Build Rating . | . . . . . Parts Repaired . | . . . . . Time . | . . . . . Parts Recycled . | . . . . . Recycled Matter . | . . . . . Retrieved Matter . | . . . . . Retrieved Components . | . . . . . Parts Scanalyzed . | . . . . . Part Schematics Acquired . | . . . . . Parts Damaged . | . . . . . Bothacking | -11 -10 -9 -8 -8 ------------ Run | Scr Mat Mat Mat Sto Used RIF Installer . | . . . . . Robots Hacked . | . . . . . Non-combat . | . . . . . Combat . | . . . . . Robot Hacks Applied . | . . . . . Relay Couplers Released . | . . . . . Fabnet Peak Effective % . | . . . . . Robots Rewired . | . . . . . Allies Hacked . | . . . . . Hacks Repelled . | . . . . . Allies | -11 -10 -9 -8 -8 -------- Run | Scr Mat Mat Mat Sto Total Allies . | . . . . . Largest Group . | . . . . . Highest-Rated Group . | . . . . . Highest-Rated Ally . | . . . . . Total Orders . | . . . . . Ally Attacks . | . . . . . Total Damage . | . . . . . Kills . | . . . . . Allies Corrupted . | . . . . . Allies Melted . | . . . . . Intel | -11 -10 -9 -8 -8 ------- Run | Scr Mat Mat Mat Sto Robot Analysis Total . | . . . . . Derelict Logs Recovered . | . . . . . Drone Launches . | . . . . . Drone Recoveries . | . . . . . Exploration | -11 -10 -9 -8 -8 ------------- Run | Scr Mat Mat Mat Sto Turns Passed 2099 | 285 530 490 572 222 Spaces Moved 878 | 134 218 195 238 93 Core 2 | 2 . . . . Treads 692 | 132 218 73 176 93 Legs 184 | . . 122 62 . Wheels . | . . . . . Hover . | . . . . . Flight . | . . . . . Fastest Speed 50 | 50 160 120 120 160 Average Speed 156 | 158 160 134 167 165 Slowest Speed 240 | 160 160 160 240 240 Overloaded Moves . | . . . . . Propulsion Burnouts . | . . . . . Robots Hopped . | . . . . . Cave-ins Triggered . | . . . . . Exploration Rate (%) 24 | 8 53 22 21 18 Regions Visited 4 Branch Regions 1 Pre-discovered Areas . | . . . . . Known Exits Taken . | . . . . . Unknown Exits Taken 4 | 1 1 1 1 . Scrap Searched . | . . . . . Spaces Dug 2 | . . . . 2 Terrain Destroyed 30 | . . . 21 9 Melee 2 | . . . . 2 Projectile 19 | . . . 12 7 AOE 9 | . . . 9 . Terrain Rammed . | . . . . . Walls Destroyed . | . . . . . Machines Disabled . | . . . . . Actions | -11 -10 -9 -8 -8 --------- Run | Scr Mat Mat Mat Sto Total 1298 | 168 334 324 349 123 Wait 170 | . 76 45 48 1 Move 874 | 133 217 194 237 93 Hop . | . . . . . Pick Up 23 | 9 2 6 5 1 Fast Attach 26 | 6 2 6 11 1 Attach 11 | 1 . 6 2 2 Detach 8 | . 1 4 . 3 Swap 9 | . . 5 3 1 Drop 23 | 1 3 6 12 1 Fire 148 | 18 33 52 29 16 Melee 6 | . . . 2 4 Ram . | . . . . . Kick . | . . . . . Crush . | . . . . . Escape Stasis . | . . . . . Rewire . | . . . . . Trap . | . . . . . Miscellaneous . | . . . . . Route ------- -11/Scrapyard -10/Materials (discovered 2 exits: *Mat / [*Min]) -9/Materials (discovered 2 exits: *Mat / [*Min]) -8/Materials (discovered 2 exits: [*Fac] / *Sto) -8/Storage History --------- Turn | Location | Event 10 | -11/Scrapyard | Discovered new exit (range 15) 286 | -11/Scrapyard | Entered Materials 306 | -10/Materials | Build established: Mutant 552 | -10/Materials | Discovered new exit (range 16) 811 | -10/Materials | Discovered new exit (range 4) 816 | -10/Materials | Entered another Materials area 816 | -9/Materials | Evolved 2 slots: Utility x2 1105 | -9/Materials | Lost 3 parts (3n) 1261 | -9/Materials | Discovered new exit (range 12) 1295 | -9/Materials | Discovered new exit (range 3) 1306 | -9/Materials | Entered another Materials area 1306 | -8/Materials | Evolved 2 slots: Propulsion x1, Weapon x1 1611 | -8/Materials | Discovered new exit (range 16) 1714 | -8/Materials | Discovered new exit (range 9) 1878 | -8/Materials | Entered Storage 1934 | -8/Storage | Build established: Scavenger-Mutant 2100 | -8/Storage | Self-destructed Last Messages --------------- 02028_ R-06 Scavenger collects Aluminum Leg. 02028_ K-01 Serf collects debris. 02030_ U-05 Engineer builds a Door. 02031_ K-01 Serf collects debris. 02033_ R-06 Scavenger collects Corrupted Imp. Heat Sink. 02034_ K-01 Serf collects debris. 02036_ Acquired 20 matter. 02037_ K-01 Serf collects debris. 02038_ Sneak attack on A-02 Transporter. 02038_ A-02 Transporter destroyed. 02039_ K-01 Serf collects debris. 02044_ Acquired Prototype Energy Gun. 02044_ Identified Hvy. EM Shotgun. 02045_ K-01 Serf collects debris. 02045_ Acquired 10 matter. 02046_ K-01 Serf collects debris. 02050_ Dropped Ion Engine. 02051_ Acquired Prototype Ballistic Gun. 02052_ K-01 Serf collects debris. 02094_ Storage Shell breached. Map ----- +----------------------------------------------------+ | ????# ##???#"""k ? #?????? | | ????# #????# ### #?????? | | ?########+#######??##+########?###???? | | ?# ! / #### #####k#?# ???? | | ?# != # ! T # #?# """ """ ???? | | ?# # # #?# """ """ ???? | | ?# # # #?# """ """ ???? | | ?#########+# # ### """ """ ???? | | ?????????# # # + """ """ ???? | | ########## # # ### ???? | | # # #% %" # #?# ???? | | # +=/ %*=%"% # #?##?# #####???? | | # # # * %% = # #??# ###???????? | | # # #####+#### #??# #?????????? | | # + ^! ####?#######???? | | # # ^ # ???? | | # ## ### """ + """ """???? | | # ## #?# """ # """ """???? | | # ## #?# """ # """ """???? | | ######## ## #?# # ???? | | ???????#### #?# ? #??????????????? | | ?????????##+#######??????????????????? | | ?????????# #??????????????????? | | ?????????# #??????????????????? | | ?????????# " "" #??????????????????? | | ?????????# "]@"? +??????????????????? | | ?????????# "[="?? #??????????????????? | | ?????????# """]???#??????????????????? | | ?????????# ???[[?????????????????????? | | ?????????# ???"""????????????????????? | | ?????????# ??????????????????????????? | | ?????????##??????????????????????????? | | ?????????????????????????????????????? | | ?????????????????????????????????????? | | ?????????????????????????????????????? | | ?????????????????????????????????????? | | ?????????????????????????????????????? | | ?????????????????????????????????????? | | ?????????????????????????????????????? | | ?????????????????????????????????????? | | ?????????????????????????????????????? | | ?????????????????????????????????????? | | ?????????????????????????????????????? | | ?????????????????????????????????????? | | ?????????????????????????????????????? | | ?????????????????????????????????????? | | ?????????????????????????????????????? | | ?????????????????????????????????????? | | ?????????????????????????????????????? | | ?????????????????????????????????????? | +----------------------------------------------------+ Best States ------------- Heat Dissipation 45 Energy Generation 14 Energy Capacity 350 Matter Stores 300 Matter Capacity 300 Sight Range 16 Terrain Scan Range 16 Terrain Scan Density 60 Armor Coverage 150 Resistance: KI 20 Evasion (%) 55 Recoil Reduction 3 Offensive Hacking 10 Item Schematics ----------------- None Robot Schematics ------------------ None Fabricated ------------ Nothing Alien Tech Used ----------------- None Achievements -------------- None Challenges ------------ None Game ------ Seed AntimatterSalvageProjector Manual? 0 Play Time 00:21:52 Cumulative 311.1 hours Start 2022.01.20 @ 12:51:37 End 2022.02.05 @ 11:57:41 Sessions 3 Manual Loads 0 Difficulty Rogue Special Mode Winter2021/Sauler Game No. 398 Rogue 394 Adventurer 0 Explorer 4 Win Type - Total 5 Types 4/0/0/1/0/0/0/0/0 Lore% 77 Gallery% 85 Achievement% 63 Wizard Run 0 Options --------- ASCII 1 Keyboard 1 Movement Numpad Keybinds 0 Fullscreen 2 Font 18/X11 Map View 76x50 Tactical HUD 1 Map Filters NONE Filters NONE Steam 1 RUN: 70510c81-8179-4533-965c-aa15115be36a